[Event "Late-Titled-Tuesday-Blitz-October-24-2023"]
[Site "Chess.com"]
[Date "2023.10.24"]
[Round "8"]
[White "stasOR4ik"]
[Black "balachess2006"]
[Result "0-1"]
[WhiteElo "2393"]
[BlackElo "2563"]
[TimeControl "180+1"]
[EndTime "15:25:59 PDT"]
[Termination "balachess2006 won by checkmate"]

1. e4 {[%clk 0:03:00.9]} 1... c5 {[%clk 0:03:00]} 2. c3 {[%clk 0:03:01.1]} 2...
Nf6 {[%clk 0:03:00]} 3. e5 {[%clk 0:03:01.1]} 3... Nd5 {[%clk 0:03:00.6]} 4. d4
{[%clk 0:03:01.8]} 4... cxd4 {[%clk 0:03:00.4]} 5. Nf3 {[%clk 0:03:01.9]} 5...
Nc6 {[%clk 0:03:00.6]} 6. cxd4 {[%clk 0:02:59.5]} 6... d6 {[%clk 0:03:00.6]} 7.
Bc4 {[%clk 0:02:59.5]} 7... dxe5 {[%clk 0:02:58]} 8. dxe5 {[%clk 0:02:55.3]}
8... Be6 {[%clk 0:02:57.8]} 9. O-O {[%clk 0:02:51.7]} 9... g6 {[%clk 0:02:57.6]}
10. Qe2 {[%clk 0:02:40.7]} 10... Qa5 {[%clk 0:02:49.7]} 11. Bd2 {[%clk
0:02:25.4]} 11... Qb6 {[%clk 0:02:45.1]} 12. Na3 {[%clk 0:02:25.5]} 12... Bg7
{[%clk 0:02:42.9]} 13. Rfd1 {[%clk 0:02:15.1]} 13... O-O {[%clk 0:02:38.2]} 14.
Bxd5 {[%clk 0:02:02.4]} 14... Bxd5 {[%clk 0:02:39.1]} 15. Bc3 {[%clk 0:01:46.6]}
15... Bxf3 {[%clk 0:02:35.3]} 16. gxf3 {[%clk 0:01:47.5]} 16... Rad8 {[%clk
0:02:29.1]} 17. f4 {[%clk 0:01:45.2]} 17... Nd4 {[%clk 0:02:16.8]} 18. Qe3
{[%clk 0:01:34.4]} 18... Ne6 {[%clk 0:02:15.2]} 19. Nc4 {[%clk 0:01:21.6]} 19...
Qa6 {[%clk 0:02:07.5]} 20. Nd2 {[%clk 0:01:14.4]} 20... Bh6 {[%clk 0:02:05.9]}
21. Qh3 {[%clk 0:01:00.7]} 21... Bxf4 {[%clk 0:02:03.1]} 22. Ne4 {[%clk
0:00:57.7]} 22... Qa4 {[%clk 0:02:00.2]} 23. Qf3 {[%clk 0:00:45.8]} 23... Bh6
{[%clk 0:01:48.3]} 24. b3 {[%clk 0:00:41]} 24... Qc6 {[%clk 0:01:40.2]} 25. Rac1
{[%clk 0:00:29.4]} 25... Rxd1+ {[%clk 0:01:39.8]} 26. Rxd1 {[%clk 0:00:29.4]}
26... Rd8 {[%clk 0:01:06.3]} 27. Rxd8+ {[%clk 0:00:23.2]} 27... Nxd8 {[%clk
0:01:07.2]} 28. Qd3 {[%clk 0:00:17.2]} 28... Ne6 {[%clk 0:01:06.7]} 29. f3
{[%clk 0:00:16.2]} 29... Bf4 {[%clk 0:00:58.2]} 30. Kg2 {[%clk 0:00:15.4]} 30...
Kg7 {[%clk 0:00:56.9]} 31. a4 {[%clk 0:00:13.2]} 31... h5 {[%clk 0:00:55.1]} 32.
h3 {[%clk 0:00:12.8]} 32... Qb6 {[%clk 0:00:49.3]} 33. b4 {[%clk 0:00:10.6]}
33... a6 {[%clk 0:00:40.8]} 34. b5 {[%clk 0:00:10]} 34... axb5 {[%clk
0:00:40.6]} 35. axb5 {[%clk 0:00:10.9]} 35... Qc7 {[%clk 0:00:39.7]} 36. Bb4
{[%clk 0:00:05.1]} 36... Bxe5 {[%clk 0:00:37.5]} 37. Qd5 {[%clk 0:00:05.1]}
37... Nf4+ {[%clk 0:00:37.5]} 38. Kg3 {[%clk 0:00:02.8]} 38... Nxd5+ {[%clk
0:00:37.7]} 39. Kh4 {[%clk 0:00:03.7]} 39... Bf6+ {[%clk 0:00:36.5]} 40. Ng5
{[%clk 0:00:03]} 40... Qf4# {[%clk 0:00:36.3]} 0-1

[Event "Late-Titled-Tuesday-Blitz-October-24-2023"]
[Site "Chess.com"]
[Date "2023.10.24"]
[Round "8"]
[White "Cryptochess"]
[Black "cassoulet"]
[Result "1-0"]
[WhiteElo "2644"]
[BlackElo "2782"]
[TimeControl "180+1"]
[EndTime "15:26:03 PDT"]
[Termination "Cryptochess won by checkmate"]

1. e4 {[%clk 0:02:54.8]} 1... c5 {[%clk 0:02:55.4]} 2. Nf3 {[%clk 0:02:54.2]}
2... e6 {[%clk 0:02:55.9]} 3. d4 {[%clk 0:02:54.3]} 3... cxd4 {[%clk 0:02:56.8]}
4. Nxd4 {[%clk 0:02:55]} 4... Nf6 {[%clk 0:02:57.4]} 5. Nc3 {[%clk 0:02:55.6]}
5... Nc6 {[%clk 0:02:58]} 6. a3 {[%clk 0:02:55.2]} 6... Be7 {[%clk 0:02:54.8]}
7. Be3 {[%clk 0:02:54.5]} 7... O-O {[%clk 0:02:54.9]} 8. g3 {[%clk 0:02:54.3]}
8... d5 {[%clk 0:02:55.2]} 9. Bg2 {[%clk 0:02:52.7]} 9... dxe4 {[%clk
0:02:33.8]} 10. O-O {[%clk 0:02:39.7]} 10... Nd5 {[%clk 0:02:25.9]} 11. Nxc6
{[%clk 0:01:40.5]} 11... bxc6 {[%clk 0:02:25.8]} 12. Nxe4 {[%clk 0:01:12.6]}
12... Nxe3 {[%clk 0:02:22.7]} 13. fxe3 {[%clk 0:01:13.5]} 13... Qb6 {[%clk
0:02:22.2]} 14. Qf3 {[%clk 0:01:08.1]} 14... Bb7 {[%clk 0:02:18.2]} 15. b4
{[%clk 0:01:05.6]} 15... Rad8 {[%clk 0:02:09.6]} 16. Rab1 {[%clk 0:00:56.5]}
16... f5 {[%clk 0:02:00.7]} 17. Nc5 {[%clk 0:00:55.5]} 17... Bxc5 {[%clk
0:01:55.9]} 18. bxc5 {[%clk 0:00:56.4]} 18... Qc7 {[%clk 0:01:55.8]} 19. Qf4
{[%clk 0:00:55.8]} 19... e5 {[%clk 0:01:48.8]} 20. Qc4+ {[%clk 0:00:55.2]} 20...
Kh8 {[%clk 0:01:49]} 21. g4 {[%clk 0:00:31.2]} 21... Bc8 {[%clk 0:01:44.1]} 22.
gxf5 {[%clk 0:00:25.8]} 22... Bxf5 {[%clk 0:01:45]} 23. Qa4 {[%clk 0:00:21.8]}
23... Qe7 {[%clk 0:01:34.6]} 24. Qxc6 {[%clk 0:00:20.6]} 24... Bxc2 {[%clk
0:01:34.2]} 25. Rxf8+ {[%clk 0:00:19.7]} 25... Rxf8 {[%clk 0:01:35.1]} 26. Rf1
{[%clk 0:00:19.9]} 26... Rd8 {[%clk 0:01:32.5]} 27. Qb7 {[%clk 0:00:18.5]} 27...
Qxc5 {[%clk 0:01:29.1]} 28. Qf3 {[%clk 0:00:11.5]} 28... h6 {[%clk 0:01:24.7]}
29. Rc1 {[%clk 0:00:09.9]} 29... e4 {[%clk 0:01:18]} 30. Qf2 {[%clk 0:00:05.4]}
30... Rc8 {[%clk 0:01:01.4]} 31. Bxe4 {[%clk 0:00:05.3]} 31... Qg5+ {[%clk
0:01:01.6]} 32. Bg2 {[%clk 0:00:05.4]} 32... Bh7 {[%clk 0:00:58.3]} 33. Rxc8+
{[%clk 0:00:06.3]} 33... Bg8 {[%clk 0:00:57.7]} 34. h3 {[%clk 0:00:03.8]} 34...
Qg6 {[%clk 0:00:57.3]} 35. Rf8 {[%clk 0:00:03.2]} 35... Qb1+ {[%clk 0:00:57]}
36. Kh2 {[%clk 0:00:03.7]} 36... Qb6 {[%clk 0:00:57.5]} 37. Rf4 {[%clk
0:00:04.2]} 37... Qd6 {[%clk 0:00:57.6]} 38. Qg3 {[%clk 0:00:04.7]} 38... Qe5
{[%clk 0:00:57.5]} 39. Rg4 {[%clk 0:00:05.1]} 39... Qe7 {[%clk 0:00:57.6]} 40.
Be4 {[%clk 0:00:04.5]} 40... Be6 {[%clk 0:00:57.5]} 41. Rg6 {[%clk 0:00:04.3]}
41... Bg8 {[%clk 0:00:56.7]} 42. Qf4 {[%clk 0:00:04.5]} 42... Bf7 {[%clk
0:00:56.6]} 43. Rxh6+ {[%clk 0:00:03.9]} 43... gxh6 {[%clk 0:00:56.1]} 44. Qxh6+
{[%clk 0:00:04.6]} 44... Kg8 {[%clk 0:00:56.7]} 45. Bh7+ {[%clk 0:00:05]} 45...
Kh8 {[%clk 0:00:56.8]} 46. Bg6+ {[%clk 0:00:05.4]} 46... Kg8 {[%clk 0:00:57.4]}
47. Qh7+ {[%clk 0:00:03.6]} 47... Kf8 {[%clk 0:00:57.9]} 48. Qxf7+ {[%clk
0:00:04.3]} 48... Qxf7 {[%clk 0:00:58.2]} 49. Bxf7 {[%clk 0:00:05.2]} 49... Kxf7
{[%clk 0:00:59.1]} 50. Kg3 {[%clk 0:00:05.9]} 50... Ke6 {[%clk 0:01:00]} 51. Kf4
{[%clk 0:00:06.6]} 51... Kd5 {[%clk 0:01:00.9]} 52. h4 {[%clk 0:00:07.3]} 52...
Kc4 {[%clk 0:01:01.8]} 53. h5 {[%clk 0:00:08.1]} 53... Kb3 {[%clk 0:01:02.7]}
54. h6 {[%clk 0:00:08.9]} 54... Kxa3 {[%clk 0:01:03.6]} 55. h7 {[%clk
0:00:09.7]} 55... a5 {[%clk 0:01:04.5]} 56. h8=Q {[%clk 0:00:10.4]} 56... Kb3
{[%clk 0:01:05.4]} 57. Qa1 {[%clk 0:00:10.9]} 57... a4 {[%clk 0:01:06.3]} 58. e4
{[%clk 0:00:11.5]} 58... a3 {[%clk 0:01:07.2]} 59. e5 {[%clk 0:00:12.4]} 59...
a2 {[%clk 0:01:07.6]} 60. e6 {[%clk 0:00:13.3]} 60... Ka3 {[%clk 0:01:08.3]} 61.
e7 {[%clk 0:00:14]} 61... Kb3 {[%clk 0:01:09.2]} 62. e8=Q {[%clk 0:00:14.7]}
62... Ka3 {[%clk 0:01:10.1]} 63. Qa8+ {[%clk 0:00:15.1]} 63... Kb3 {[%clk
0:01:11]} 64. Q8xa2+ {[%clk 0:00:15.6]} 64... Kb4 {[%clk 0:01:10.2]} 65. Qd4+
{[%clk 0:00:15.7]} 65... Kb5 {[%clk 0:01:10.4]} 66. Qaa4# {[%clk 0:00:16.3]} 1-0

[Event "Late-Titled-Tuesday-Blitz-October-24-2023"]
[Site "Chess.com"]
[Date "2023.10.24"]
[Round "8"]
[White "cthulhuuu"]
[Black "nitpicker"]
[Result "1-0"]
[WhiteElo "2424"]
[BlackElo "2266"]
[TimeControl "180+1"]
[EndTime "15:26:05 PDT"]
[Termination "cthulhuuu won on time"]

1. e4 {[%clk 0:02:59.8]} 1... c5 {[%clk 0:02:58.6]} 2. Nf3 {[%clk 0:03:00.2]}
2... Nc6 {[%clk 0:02:57.4]} 3. g3 {[%clk 0:03:00.1]} 3... e6 {[%clk 0:02:51]} 4.
d3 {[%clk 0:03:00.2]} 4... g6 {[%clk 0:02:50.2]} 5. Bg2 {[%clk 0:03:00.3]} 5...
Bg7 {[%clk 0:02:50.3]} 6. O-O {[%clk 0:03:00.8]} 6... Nge7 {[%clk 0:02:49.3]} 7.
Re1 {[%clk 0:03:01.1]} 7... e5 {[%clk 0:02:48.6]} 8. Nc3 {[%clk 0:03:00.7]} 8...
d6 {[%clk 0:02:47.6]} 9. Nd2 {[%clk 0:03:00.9]} 9... O-O {[%clk 0:02:43.8]} 10.
Nc4 {[%clk 0:03:01]} 10... Be6 {[%clk 0:02:42.1]} 11. Nd5 {[%clk 0:03:01.2]}
11... h6 {[%clk 0:02:34.2]} 12. a4 {[%clk 0:03:00.5]} 12... f5 {[%clk
0:02:32.4]} 13. f4 {[%clk 0:02:59.8]} 13... Rf7 {[%clk 0:01:57.2]} 14. c3 {[%clk
0:02:58.7]} 14... Qd7 {[%clk 0:01:55.8]} 15. a5 {[%clk 0:02:56.1]} 15... Raf8
{[%clk 0:01:47.2]} 16. Qa4 {[%clk 0:02:56.2]} 16... Qd8 {[%clk 0:01:19.1]} 17.
Be3 {[%clk 0:02:38]} 17... exf4 {[%clk 0:01:08.4]} 18. gxf4 {[%clk 0:02:23.5]}
18... a6 {[%clk 0:00:41.1]} 19. Qb3 {[%clk 0:02:02.1]} 19... Nc8 {[%clk
0:00:29]} 20. Bf2 {[%clk 0:01:45]} 20... fxe4 {[%clk 0:00:24.1]} 21. dxe4 {[%clk
0:01:44.2]} 21... Bxd5 {[%clk 0:00:21.6]} 22. exd5 {[%clk 0:01:43.8]} 22... N6a7
{[%clk 0:00:15.6]} 23. Bg3 {[%clk 0:01:37.6]} 23... h5 {[%clk 0:00:15.6]} 24. h4
{[%clk 0:01:36.5]} 24... Bh6 {[%clk 0:00:15.2]} 25. Rf1 {[%clk 0:01:28.1]} 25...
Bxf4 {[%clk 0:00:14.3]} 26. Bxf4 {[%clk 0:01:27.7]} 26... Rxf4 {[%clk
0:00:14.7]} 27. Qxb7 {[%clk 0:01:17.8]} 27... Qxh4 {[%clk 0:00:11.2]} 28. Nxd6
{[%clk 0:00:48.2]} 28... Qg3 {[%clk 0:00:09.7]} 29. Nxc8 {[%clk 0:00:38.7]}
29... Nxc8 {[%clk 0:00:08.2]} 30. Rxf4 {[%clk 0:00:37]} 30... Rxf4 {[%clk
0:00:06.8]} 31. Qxc8+ {[%clk 0:00:37.1]} 31... Rf8 {[%clk 0:00:02.9]} 32. Qxc5
{[%clk 0:00:35.2]} 32... h4 {[%clk 0:00:01.1]} 33. Rf1 {[%clk 0:00:22]} 1-0

[Event "Late-Titled-Tuesday-Blitz-October-24-2023"]
[Site "Chess.com"]
[Date "2023.10.24"]
[Round "8"]
[White "Gogolev_Artemy"]
[Black "ChuckPhil"]
[Result "1-0"]
[WhiteElo "2433"]
[BlackElo "2524"]
[TimeControl "180+1"]
[EndTime "15:26:06 PDT"]
[Termination "Gogolev_Artemy won by resignation"]

1. c4 {[%clk 0:02:53.3]} 1... e5 {[%clk 0:02:57.7]} 2. Nc3 {[%clk 0:02:52.7]}
2... Nc6 {[%clk 0:02:58]} 3. Nf3 {[%clk 0:02:53.1]} 3... d6 {[%clk 0:02:53.8]}
4. g3 {[%clk 0:02:52.3]} 4... f5 {[%clk 0:02:53.3]} 5. Bg2 {[%clk 0:02:45.7]}
5... Nf6 {[%clk 0:02:51.9]} 6. O-O {[%clk 0:02:43.7]} 6... Be7 {[%clk
0:02:51.7]} 7. d4 {[%clk 0:02:42.9]} 7... e4 {[%clk 0:02:46.9]} 8. Ng5 {[%clk
0:02:43.5]} 8... O-O {[%clk 0:02:45.7]} 9. f3 {[%clk 0:02:36.2]} 9... h6 {[%clk
0:02:42]} 10. Nh3 {[%clk 0:02:36.2]} 10... exf3 {[%clk 0:02:37.6]} 11. exf3
{[%clk 0:02:36]} 11... d5 {[%clk 0:02:31.6]} 12. c5 {[%clk 0:01:58.3]} 12... g5
{[%clk 0:02:26.7]} 13. f4 {[%clk 0:01:48.2]} 13... g4 {[%clk 0:02:24.6]} 14. Nf2
{[%clk 0:01:48.8]} 14... Be6 {[%clk 0:02:04.4]} 15. Re1 {[%clk 0:01:33.5]} 15...
Bf7 {[%clk 0:02:04.4]} 16. Be3 {[%clk 0:01:32.9]} 16... Kg7 {[%clk 0:01:56.3]}
17. Nd3 {[%clk 0:01:25.8]} 17... Ne4 {[%clk 0:01:46.8]} 18. Ne5 {[%clk
0:01:24.2]} 18... h5 {[%clk 0:01:38.8]} 19. Qc1 {[%clk 0:01:14.2]} 19... h4
{[%clk 0:01:34.6]} 20. Nxe4 {[%clk 0:01:10.7]} 20... dxe4 {[%clk 0:01:31.5]} 21.
Nxf7 {[%clk 0:00:59.3]} 21... Rxf7 {[%clk 0:01:27.7]} 22. Qc4 {[%clk 0:00:58.3]}
22... Bf6 {[%clk 0:01:16.9]} 23. d5 {[%clk 0:00:50.5]} 23... Ne7 {[%clk
0:01:13.9]} 24. Red1 {[%clk 0:00:50.6]} 24... Qd7 {[%clk 0:01:05.8]} 25. Rd2
{[%clk 0:00:22.3]} 25... Rd8 {[%clk 0:01:05.5]} 26. Rad1 {[%clk 0:00:22.7]}
26... Ng6 {[%clk 0:00:54.6]} 27. b4 {[%clk 0:00:20.5]} 27... Rh8 {[%clk
0:00:40.3]} 28. b5 {[%clk 0:00:19.3]} 28... b6 {[%clk 0:00:38.8]} 29. d6 {[%clk
0:00:17.5]} 29... bxc5 {[%clk 0:00:36.1]} 30. Qxc5 {[%clk 0:00:12.9]} 30... cxd6
{[%clk 0:00:32.3]} 31. Rxd6 {[%clk 0:00:13.8]} 31... Qe7 {[%clk 0:00:32.7]} 32.
Qxf5 {[%clk 0:00:09.8]} 32... hxg3 {[%clk 0:00:25.2]} 33. hxg3 {[%clk
0:00:09.3]} 33... Bc3 {[%clk 0:00:16.1]} 34. Qxg6+ {[%clk 0:00:08.7]} 34... Kf8
{[%clk 0:00:15.2]} 35. Rd8+ {[%clk 0:00:09.3]} 1-0

[Event "Late-Titled-Tuesday-Blitz-October-24-2023"]
[Site "Chess.com"]
[Date "2023.10.24"]
[Round "8"]
[White "Eternauta2400"]
[Black "Apocalyps999"]
[Result "0-1"]
[WhiteElo "2716"]
[BlackElo "2373"]
[TimeControl "180+1"]
[EndTime "15:26:10 PDT"]
[Termination "Apocalyps999 won on time"]

1. c4 {[%clk 0:03:00.9]} 1... e5 {[%clk 0:02:57.8]} 2. Nc3 {[%clk 0:03:00.8]}
2... Nf6 {[%clk 0:02:52.6]} 3. Nf3 {[%clk 0:03:00.9]} 3... Nc6 {[%clk
0:02:52.4]} 4. g3 {[%clk 0:03:00.9]} 4... d5 {[%clk 0:02:49.8]} 5. cxd5 {[%clk
0:03:01.8]} 5... Nxd5 {[%clk 0:02:50.7]} 6. Bg2 {[%clk 0:03:00.9]} 6... Be6
{[%clk 0:02:51]} 7. O-O {[%clk 0:02:57.8]} 7... Nb6 {[%clk 0:02:46.9]} 8. a3
{[%clk 0:02:34.7]} 8... a5 {[%clk 0:02:44.9]} 9. d4 {[%clk 0:02:26.1]} 9... exd4
{[%clk 0:02:42.4]} 10. Nb5 {[%clk 0:02:25.8]} 10... Bc5 {[%clk 0:02:33.1]} 11.
Bf4 {[%clk 0:02:24.5]} 11... Rc8 {[%clk 0:02:23.1]} 12. Rc1 {[%clk 0:02:22.9]}
12... Be7 {[%clk 0:01:45.9]} 13. Nfxd4 {[%clk 0:02:19.7]} 13... Nxd4 {[%clk
0:01:44]} 14. Bxc7 {[%clk 0:01:56.4]} 14... Qd7 {[%clk 0:01:17.8]} 15. Qxd4
{[%clk 0:01:44]} 15... Nd5 {[%clk 0:00:58.6]} 16. Bxd5 {[%clk 0:00:59.9]} 16...
Bxd5 {[%clk 0:00:59.5]} 17. Na7 {[%clk 0:00:28.2]} 17... Rxc7 {[%clk 0:00:49.8]}
18. Rxc7 {[%clk 0:00:29.1]} 18... Qxc7 {[%clk 0:00:50.4]} 19. Qxd5 {[%clk
0:00:29.2]} 19... O-O {[%clk 0:00:49.9]} 20. Qb3 {[%clk 0:00:24.6]} 20... Qc5
{[%clk 0:00:42]} 21. Nb5 {[%clk 0:00:23.2]} 21... Bf6 {[%clk 0:00:41.4]} 22. e3
{[%clk 0:00:20.4]} 22... Rd8 {[%clk 0:00:32.1]} 23. Nc3 {[%clk 0:00:18.7]} 23...
Bxc3 {[%clk 0:00:24.5]} 24. bxc3 {[%clk 0:00:18.8]} 24... b6 {[%clk 0:00:15.1]}
25. Rb1 {[%clk 0:00:18.6]} 25... Rd6 {[%clk 0:00:13.6]} 26. a4 {[%clk
0:00:18.6]} 26... g6 {[%clk 0:00:13.2]} 27. c4 {[%clk 0:00:17]} 27... Rc6 {[%clk
0:00:12.7]} 28. Rc1 {[%clk 0:00:16.5]} 28... Qb4 {[%clk 0:00:12.4]} 29. Qd3
{[%clk 0:00:07.4]} 29... Qxa4 {[%clk 0:00:11.7]} 30. Qd7 {[%clk 0:00:07.1]}
30... Rxc4 {[%clk 0:00:10.5]} 31. Qe8+ {[%clk 0:00:03.4]} 31... Qxe8 {[%clk
0:00:09.9]} 0-1

[Event "Late-Titled-Tuesday-Blitz-October-24-2023"]
[Site "Chess.com"]
[Date "2023.10.24"]
[Round "8"]
[White "ikhasu"]
[Black "Mariia89"]
[Result "1-0"]
[WhiteElo "2369"]
[BlackElo "2185"]
[TimeControl "180+1"]
[EndTime "15:26:11 PDT"]
[Termination "ikhasu won on time"]

1. d4 {[%clk 0:03:00.9]} 1... Nf6 {[%clk 0:02:58.7]} 2. Nf3 {[%clk 0:03:01.2]}
2... c5 {[%clk 0:02:59.3]} 3. dxc5 {[%clk 0:02:54]} 3... e6 {[%clk 0:02:59]} 4.
g3 {[%clk 0:02:42.3]} 4... Bxc5 {[%clk 0:02:59.3]} 5. Bg2 {[%clk 0:02:42.6]}
5... d5 {[%clk 0:02:59.8]} 6. O-O {[%clk 0:02:42.1]} 6... O-O {[%clk 0:03:00.3]}
7. b3 {[%clk 0:02:42.2]} 7... Nc6 {[%clk 0:03:00.2]} 8. Bb2 {[%clk 0:02:42.5]}
8... Re8 {[%clk 0:02:58.8]} 9. Ne5 {[%clk 0:02:38.6]} 9... Nxe5 {[%clk
0:02:55.5]} 10. Bxe5 {[%clk 0:02:38.5]} 10... Bd7 {[%clk 0:02:50.9]} 11. Nd2
{[%clk 0:02:36.3]} 11... Bc6 {[%clk 0:02:51]} 12. e3 {[%clk 0:02:34.1]} 12...
Rc8 {[%clk 0:02:49]} 13. Qe2 {[%clk 0:02:22.6]} 13... Nd7 {[%clk 0:02:42.9]} 14.
Bb2 {[%clk 0:02:22]} 14... e5 {[%clk 0:02:39.2]} 15. e4 {[%clk 0:02:19.2]} 15...
d4 {[%clk 0:02:34.1]} 16. a3 {[%clk 0:02:07.2]} 16... a6 {[%clk 0:02:31.6]} 17.
b4 {[%clk 0:02:06.9]} 17... Bb5 {[%clk 0:02:22.1]} 18. Qf3 {[%clk 0:02:03.3]}
18... Bxf1 {[%clk 0:02:19.6]} 19. Bxf1 {[%clk 0:02:03.4]} 19... Bf8 {[%clk
0:02:18.9]} 20. Bc4 {[%clk 0:02:01.8]} 20... Nf6 {[%clk 0:02:11.6]} 21. Bb3
{[%clk 0:02:01.5]} 21... Qd7 {[%clk 0:02:03]} 22. Nc4 {[%clk 0:01:54.9]} 22...
Qg4 {[%clk 0:01:59.5]} 23. Qxg4 {[%clk 0:01:48]} 23... Nxg4 {[%clk 0:01:59.4]}
24. Nb6 {[%clk 0:01:48.2]} 24... Rc6 {[%clk 0:01:52.1]} 25. Ba4 {[%clk
0:01:37.7]} 25... Ree6 {[%clk 0:01:42.8]} 26. Nd5 {[%clk 0:01:30.6]} 26... Rc8
{[%clk 0:01:16.5]} 27. Re1 {[%clk 0:01:22]} 27... b5 {[%clk 0:01:10.9]} 28. Bb3
{[%clk 0:01:21]} 28... Rd6 {[%clk 0:01:11.2]} 29. h3 {[%clk 0:01:11.9]} 29...
Nf6 {[%clk 0:01:10.5]} 30. f4 {[%clk 0:01:05.3]} 30... Nxd5 {[%clk 0:01:00.1]}
31. exd5 {[%clk 0:00:54]} 31... f6 {[%clk 0:00:32.2]} 32. fxe5 {[%clk
0:00:53.3]} 32... fxe5 {[%clk 0:00:15.3]} 33. Rxe5 {[%clk 0:00:52.8]} 33... Rg6
{[%clk 0:00:15.8]} 34. d6+ {[%clk 0:00:36.8]} 34... Kh8 {[%clk 0:00:15]} 35. d7
{[%clk 0:00:36.8]} 35... Rd8 {[%clk 0:00:04]} 36. Re8 {[%clk 0:00:35.9]} 36...
Rxg3+ {[%clk 0:00:03.7]} 37. Kf2 {[%clk 0:00:33.7]} 1-0

[Event "Late-Titled-Tuesday-Blitz-October-24-2023"]
[Site "Chess.com"]
[Date "2023.10.24"]
[Round "8"]
[White "Nikita_Klepikov"]
[Black "aghasiyevkamal"]
[Result "0-1"]
[WhiteElo "2352"]
[BlackElo "2598"]
[TimeControl "180+1"]
[EndTime "15:26:14 PDT"]
[Termination "aghasiyevkamal won by resignation"]

1. e4 {[%clk 0:02:58.7]} 1... e5 {[%clk 0:02:58.8]} 2. Nf3 {[%clk 0:02:58.9]}
2... Nc6 {[%clk 0:02:59]} 3. Bb5 {[%clk 0:02:59.7]} 3... a6 {[%clk 0:02:55]} 4.
Ba4 {[%clk 0:02:59.8]} 4... d6 {[%clk 0:02:53.2]} 5. c3 {[%clk 0:02:47.9]} 5...
Bd7 {[%clk 0:02:49.6]} 6. d4 {[%clk 0:02:44.5]} 6... g6 {[%clk 0:02:49.9]} 7.
Bg5 {[%clk 0:02:37]} 7... f6 {[%clk 0:02:35.8]} 8. Be3 {[%clk 0:02:36.1]} 8...
Nh6 {[%clk 0:02:32.3]} 9. h3 {[%clk 0:02:32.3]} 9... Nf7 {[%clk 0:02:30]} 10.
O-O {[%clk 0:02:29.2]} 10... Bh6 {[%clk 0:02:24.5]} 11. b4 {[%clk 0:02:24.7]}
11... Bxe3 {[%clk 0:02:23.5]} 12. fxe3 {[%clk 0:02:25.6]} 12... O-O {[%clk
0:02:23.2]} 13. Bb3 {[%clk 0:02:25.1]} 13... Kg7 {[%clk 0:02:22.9]} 14. a4
{[%clk 0:02:24.2]} 14... Qe7 {[%clk 0:02:12.3]} 15. Nbd2 {[%clk 0:02:23.9]}
15... Nh6 {[%clk 0:02:02.4]} 16. Qe2 {[%clk 0:02:17.8]} 16... f5 {[%clk
0:01:56.9]} 17. b5 {[%clk 0:02:08]} 17... Na5 {[%clk 0:01:53.5]} 18. Bc2 {[%clk
0:02:05.2]} 18... f4 {[%clk 0:01:48.6]} 19. exf4 {[%clk 0:01:59.2]} 19... Rxf4
{[%clk 0:01:48.1]} 20. Qd3 {[%clk 0:01:22.3]} 20... Nf7 {[%clk 0:01:23.4]} 21.
g3 {[%clk 0:01:07.5]} 21... Rf6 {[%clk 0:01:21.7]} 22. Kg2 {[%clk 0:01:06.4]}
22... axb5 {[%clk 0:01:03.9]} 23. axb5 {[%clk 0:01:07.3]} 23... b6 {[%clk
0:01:04.4]} 24. Nb3 {[%clk 0:00:59.1]} 24... Rf8 {[%clk 0:01:00.8]} 25. Nxa5
{[%clk 0:00:58]} 25... bxa5 {[%clk 0:01:01.1]} 26. Rxa5 {[%clk 0:00:57.8]} 26...
Bxh3+ {[%clk 0:00:49.3]} 27. Kxh3 {[%clk 0:00:55.7]} 27... Rxf3 {[%clk
0:00:49.2]} 28. Rxf3 {[%clk 0:00:45.2]} 28... Ng5+ {[%clk 0:00:49.1]} 29. Kg2
{[%clk 0:00:43.5]} 29... Rxf3 {[%clk 0:00:42.6]} 30. Qd1 {[%clk 0:00:27.7]}
30... Qf6 {[%clk 0:00:31]} 31. Qe1 {[%clk 0:00:23.6]} 31... exd4 {[%clk
0:00:26.8]} 32. Ra7 {[%clk 0:00:23]} 32... Rxc3 {[%clk 0:00:25.1]} 33. Qe2
{[%clk 0:00:20.1]} 33... d3 {[%clk 0:00:19.3]} 34. Bxd3 {[%clk 0:00:19.8]} 34...
Qd4 {[%clk 0:00:19.5]} 35. Qf1 {[%clk 0:00:05]} 35... Qxa7 {[%clk 0:00:15.9]}
0-1

[Event "Late-Titled-Tuesday-Blitz-October-24-2023"]
[Site "Chess.com"]
[Date "2023.10.24"]
[Round "8"]
[White "Jospem"]
[Black "Bauman_Guy"]
[Result "1-0"]
[WhiteElo "3085"]
[BlackElo "2919"]
[TimeControl "180+1"]
[EndTime "15:26:20 PDT"]
[Termination "Jospem won by resignation"]

1. e4 {[%clk 0:03:00.6]} 1... c5 {[%clk 0:02:59.8]} 2. Nf3 {[%clk 0:03:01.2]}
2... d6 {[%clk 0:03:00.2]} 3. c3 {[%clk 0:03:01.9]} 3... Nf6 {[%clk 0:03:00.4]}
4. h3 {[%clk 0:03:02.7]} 4... g6 {[%clk 0:02:59.6]} 5. Bd3 {[%clk 0:03:03.1]}
5... Bg7 {[%clk 0:02:59.6]} 6. Bc2 {[%clk 0:03:03.5]} 6... O-O {[%clk
0:02:59.3]} 7. O-O {[%clk 0:03:04.1]} 7... e5 {[%clk 0:02:57.9]} 8. d4 {[%clk
0:03:04.5]} 8... cxd4 {[%clk 0:02:58.4]} 9. cxd4 {[%clk 0:03:05.4]} 9... exd4
{[%clk 0:02:59.3]} 10. Nxd4 {[%clk 0:03:06.3]} 10... d5 {[%clk 0:02:59.9]} 11.
e5 {[%clk 0:03:03.5]} 11... Ne4 {[%clk 0:03:00.2]} 12. f4 {[%clk 0:02:54.4]}
12... f6 {[%clk 0:03:00]} 13. exf6 {[%clk 0:02:50.4]} 13... Qxf6 {[%clk
0:03:00.9]} 14. Nf3 {[%clk 0:02:31.5]} 14... Be6 {[%clk 0:02:56]} 15. Nc3 {[%clk
0:02:16.9]} 15... Nxc3 {[%clk 0:02:43.1]} 16. bxc3 {[%clk 0:02:17.8]} 16... Nc6
{[%clk 0:02:43.4]} 17. Rb1 {[%clk 0:02:16.2]} 17... b6 {[%clk 0:02:41.6]} 18.
Ba4 {[%clk 0:01:51]} 18... Rac8 {[%clk 0:02:35.4]} 19. Bd2 {[%clk 0:01:46.5]}
19... Kh8 {[%clk 0:01:54]} 20. Rc1 {[%clk 0:01:43.5]} 20... Bf5 {[%clk
0:01:46.8]} 21. Be3 {[%clk 0:01:41.7]} 21... Be4 {[%clk 0:01:40.2]} 22. Bb3
{[%clk 0:01:41.8]} 22... Na5 {[%clk 0:01:35.6]} 23. Bd4 {[%clk 0:01:41.8]} 23...
Qxf4 {[%clk 0:01:33.5]} 24. Bxg7+ {[%clk 0:01:41.9]} 24... Kxg7 {[%clk
0:01:34.4]} 25. Qd4+ {[%clk 0:01:40.5]} 25... Rf6 {[%clk 0:00:57.9]} 26. Ne5
{[%clk 0:00:58.2]} 26... Qg3 {[%clk 0:00:50.3]} 27. Rc2 {[%clk 0:00:58.7]} 27...
Nc6 {[%clk 0:00:21.6]} 28. Nxc6 {[%clk 0:00:56.5]} 28... Rxc6 {[%clk 0:00:22.5]}
29. Re2 {[%clk 0:00:45]} 29... Qg5 {[%clk 0:00:21.4]} 30. c4 {[%clk 0:00:35.7]}
30... Kh6 {[%clk 0:00:19.2]} 31. Rxf6 {[%clk 0:00:35.5]} 31... Rxf6 {[%clk
0:00:16.8]} 32. cxd5 {[%clk 0:00:34.9]} 32... Qc1+ {[%clk 0:00:14.6]} 33. Bd1
{[%clk 0:00:32.5]} 33... Rf4 {[%clk 0:00:07.5]} 34. Rd2 {[%clk 0:00:33]} 34...
Qc5 {[%clk 0:00:04.6]} 35. Qxc5 {[%clk 0:00:33.4]} 35... bxc5 {[%clk 0:00:05.2]}
36. d6 {[%clk 0:00:34.3]} 36... Rf8 {[%clk 0:00:04.3]} 37. Re2 {[%clk
0:00:34.9]} 37... Bf5 {[%clk 0:00:03.1]} 38. g4 {[%clk 0:00:26.3]} 38... Bd7
{[%clk 0:00:03.1]} 39. Re7 {[%clk 0:00:26.4]} 39... Rd8 {[%clk 0:00:03.7]} 40.
h4 {[%clk 0:00:25.4]} 40... g5 {[%clk 0:00:03.4]} 41. h5 {[%clk 0:00:24]} 41...
Bc8 {[%clk 0:00:03.5]} 42. Bc2 {[%clk 0:00:23.4]} 42... Rh8 {[%clk 0:00:01.6]}
43. d7 {[%clk 0:00:21.5]} 43... Bxd7 {[%clk 0:00:02]} 44. Rxd7 {[%clk
0:00:22.4]} 1-0